Cogmind - Beta 16 @@@ ROGUE MODE // 2025.12.30 @ 13:31:44 Player: doki Result: Destroyed by JO-E9O(M) with Riot Gun Performance ------------- Evolutions (3) 1500 Regions Visited (9) 1800 Robots Destroyed (55) 275 Value Destroyed (1535) 1535 Prototype IDs (4) 80 Alien Tech Used (0) 0 Bonus (600) 600 TOTAL SCORE: 5790 Bonus ------- Aligned with FarCom 300 Met Imprinter 300 Cogmind --------- Core Integrity 0/700 Matter 300/300 Energy 100/100 System Corruption 7% Temperature Cool (60) Movement Core (350) Ox6 Location -7/Zion Parts ------- > --- POWER (1) -------- (None) > --- PROPULSION (4) --- (None) > --- UTILITY (4) ------ Large Storage Unit > --- WEAPON (4) ------- (None) > --- INVENTORY (15) --- Deuterium Engine Heavy Deuterium Engine Compact Battery (200) Targeting Computer Advanced Targeting Computer Improved Target Analyzer Particle Charger Improved Particle Charger Improved Shield Generator YOLO Cannon CR-A16's Pointy Stick Peak State ------------ > --- POWER ------------ Heavy Deuterium Engine > --- PROPULSION ------- Light Treads Armored Treads Advanced Treads Aluminum Leg > --- UTILITY ---------- Large Storage Unit Seismic Detector Improved Medium Armor Plating Improved Shield Generator > --- WEAPON ----------- YOLO Cannon Gauss Rifle Gauss Cannon > --- INVENTORY -------- Deuterium Engine Deuterium Engine Carbon-fiber Leg Scrap Suit Compact Battery Improved Target Analyzer Particle Charger Improved Particle Charger Arc Projector High-powered Shock Rifle Plasma Rifle Gauss Rifle [Rating: 56] Favorites ----------- Power Deuterium Engine Engine Deuterium Engine Propulsion Aluminum Leg Treads Armored Treads Leg Aluminum Leg Utility Seismic Detector Device Seismic Detector Storage Large Storage Unit Processor Targeting Computer Protection Improved Medium Armor Plating Weapon Gauss Rifle Energy Gun High-powered Shock Rifle Energy Cannon YOLO Cannon Ballistic Gun Gauss Rifle Ballistic Cannon Gauss Cannon Impact Weapon Makeshift Hammer Slashing Weapon Makeshift Axe Build | -11 -10 -10 -10 -9 -8 -7 -7 -7 -7 ------- Run | Yrd Mat Min Exi Min Mat Fac Low Low Zio Slots Evolved 6 | . . . . . 4 2 . . . Power . | . . . . . . . . . . Propulsion 2 | . . . . . 2 . . . . Utility 2 | . . . . . 2 . . . . Weapon 2 | . . . . . . 2 . . . Parts Attached 38 | 8 3 1 1 3 8 6 8 . . Power 6 | 1 1 . . 1 1 1 1 . . Engine 6 | 1 1 . . 1 1 1 1 . . Core . | . . . . . . . . . . Reactor . | . . . . . . . . . . Propulsion 8 | 2 . . . 2 3 . 1 . . Treads 3 | . . . . . 3 . . . . Leg 5 | 2 . . . 2 . . 1 . . Wheel . | . . . . . . . . . . Hover . | . . . . . . . . . . Flight . | . . . . . . . . . . Utility 9 | 2 . . . . 4 2 1 . . Device 4 | 1 . . . . 1 1 1 . . Storage 2 | 1 . . . . 1 . . . . Processor 1 | . . . . . 1 . . . . Hackware . | . . . . . . . . . . Protection 2 | . . . . . 1 1 . . . Artifact . | . . . . . . . . . . Weapon 15 | 3 2 1 1 . . 3 5 . . Energy Gun 4 | 1 . . . . . . 3 . . Energy Cannon 1 | . . . 1 . . . . . . Ballistic Gun 5 | 2 1 . . . . 1 1 . . Ballistic Cannon 3 | . 1 . . . . 2 . . . Launcher . | . . . . . . . . . . Special Weapon . | . . . . . . . . . . Impact Weapon 1 | . . . . . . . 1 . . Slashing Weapon 1 | . . 1 . . . . . . . Piercing Weapon . | . . . . . . . . . . Special Melee Weapon . | . . . . . . . . . . Unidentified Prototypes 2 | . . . 1 . . 1 . . . Parts Lost 19 | . 1 . . 2 . . 6 1 9 Power 3 | . 1 . . 1 . . . . 1 Propulsion 6 | . . . . 1 . . 2 1 2 Utility 3 | . . . . . . . 1 . 2 Weapon 7 | . . . . . . . 3 . 4 Highest Loss Streak 9 | . 1 . . 2 . . 6 1 9 To Critical Strikes . | . . . . . . . . . . Average Backups 9 | 1 6 8 8 6 8 13 12 9 10 Power 1 | . 1 1 1 . 1 2 1 2 2 Propulsion . | . 1 2 2 1 1 3 . . . Utility 4 | . . 2 2 2 2 3 4 6 6 Weapon 2 | . 1 2 2 2 2 2 4 1 1 Tool/Special . | . . . . . . . . . . Unused Backups 12 | . 1 . 1 . . . 3 . 7 Power 1 | . . . . . . . . . 1 Propulsion . | . . . . . . . . . . Utility 7 | . 1 . 1 . . . . . 5 Weapon 3 | . . . . . . . 2 . 1 Tool/Special 1 | . . . . . . . 1 . . Average Slot Usage (%) 84 | . 100 100 95 84 79 84 89 76 74 Engine 8 | . 14 14 14 14 9 7 6 7 6 Treads 9 | . . . . . 12 23 20 7 6 Leg 12 | . 28 28 28 27 16 . 7 7 6 Device 13 | . 14 14 14 14 9 7 14 15 14 Storage 8 | . 14 14 14 14 9 7 7 7 7 Protection 2 | . . . . . 5 7 5 . . Energy Gun 6 | . . . . . . . 1 15 14 Energy Cannon 3 | . . . 4 14 9 7 5 . . Ballistic Gun 6 | . 20 6 . . . 6 6 7 6 Ballistic Cannon 3 | . 7 14 9 . . 6 6 . . Impact Weapon 2 | . . . . . . . . 7 6 Slashing Weapon 1 | . . 7 9 . . . . . . Peak Build Rating 56 | 7 7 10 26 26 38 54 56 43 42 Average Rating 37 | 5 6 8 15 25 33 47 52 42 41 On Entrance 25 | . 7 7 10 26 26 37 54 43 42 Avg Prop Armor Cover (%) 6 | . . . . . 7 3 3 8 9 Naked Turns . | . . . . . . . . . . Heaviest Build 72 | 12 14 15 27 27 51 72 72 50 50 Greatest Support 62 | 20 20 20 20 20 62 62 62 25 15 Greatest Overweight (x) 7 | 1 . . 1 1 1 1 3 3 7 Average Overweight (x) 1 | . . . . 1 . . 1 2 3 Largest Inventory Capacity 15 | 8 8 8 8 8 15 15 15 15 15 Average Capacity 13 | 7 8 8 8 8 14 15 15 15 15 Most Carried 15 | 3 8 8 8 8 14 15 15 11 12 Average Carried 10 | 1 6 8 7 6 9 14 13 10 11 Final Capacity 15 | 8 8 8 8 8 15 15 15 15 15 Final Carried 14 | 3 8 8 8 8 14 13 10 10 12 Scrap Suit Usage (%) 40 | . . . . . . . 13 100 97 Parts Cannibalized 2 | . . . . . . . . 1 1 Class Distribution -------------------- 40% | Gunner 24% | Mutant 21% | Scavenger-Tank 7% | Scavenger-Mutant 5% | Skirmisher Dominant Class ---------------- Mutant | -10/Materials Mutant | -10/Mines Mutant | -10/Exiles Scavenger-Mutant | -9/Mines Mutant | -8/Materials Skirmisher | -7/Factory Scavenger-Tank | -7/Lower Caves Gunner | -7/Lower Caves Gunner | -7/Zion Resources | -11 -10 -10 -10 -9 -8 -7 -7 -7 -7 ----------- Run | Yrd Mat Min Exi Min Mat Fac Low Low Zio Matter Collected 1127 | 270 250 40 . 60 84 . 360 55 8 Remotely . | . . . . . . . . . . Salvage Created 1567 | 165 232 . . 99 255 . 523 213 80 Parts 99 | 11 24 . . 6 26 . 21 10 1 Haulers Intercepted . | . . . . . . . . . . Recyclers Shooed 5 | . 3 . . 2 . . . . . Parts Field Recycled . | . . . . . . . . . . Retrieved Matter . | . . . . . . . . . . Parts Self-Destructed 32 | . . . . . . . 19 10 3 Prevented . | . . . . . . . . . . Parts Restored . | . . . . . . . . . . Kills | -11 -10 -10 -10 -9 -8 -7 -7 -7 -7 ------- Run | Yrd Mat Min Exi Min Mat Fac Low Low Zio Combat Hostiles Destroyed 40 | . 7 . . 5 9 . 12 6 1 Guns 9 | . 2 . . . . . 1 6 . Cannons 13 | . 5 . . 2 2 . 4 . . AOE 13 | . . . . 3 4 . 6 . . Classes Destroyed 14 | 3 3 . . 1 3 . 3 . 1 Worker 9 | 2 4 . . . 3 . . . . Builder 2 | . . . . . 2 . . . . Tunneler 2 | 2 . . . . . . . . . Recycler 1 | 1 . . . . . . . . . Operator 3 | . 2 . . . 1 . . . . Swarmer 14 | . 3 . . . 4 . 2 5 . Grunt 10 | . 4 . . 3 . . 3 . . Brawler 2 | . . . . . . . 2 . . Duelist 2 | . . . . . . . 2 . . Sentry 5 | . . . . . 3 . 1 1 . Hunter 3 | . . . . . 2 . 1 . . Behemoth 1 | . . . . . . . 1 . . Assembled 2 | . . . . 2 . . . . . Mutant 1 | . . . . . . . . . 1 Best Kill Streak 8 | 2 3 . . 3 8 . 3 3 1 Combat Bots Only 5 | . 3 . . 3 5 . 3 3 1 Max Kills in Single Turn 3 | 2 1 . . 2 3 . 2 2 1 Gunslinging . | . . . . . . . . . . Exploded 2 | . . . . 1 2 . 2 . . Melee . | . . . . . . . . . . Uniques/NPCs Destroyed . | . . . . . . . . . . Combat | -11 -10 -10 -10 -9 -8 -7 -7 -7 -7 -------- Run | Yrd Mat Min Exi Min Mat Fac Low Low Zio Hostile Shots Fired 355 | . 51 . . 15 19 8 79 49 134 Missed 94 | . 16 . . 3 5 1 20 14 35 Hits 261 | . 35 . . 12 14 7 59 35 99 Melee 14 | . . . . . . . 14 . . Projectile 247 | . 35 . . 12 14 7 45 35 99 Critical Strikes 13 | . . . . 1 2 . 6 1 3 Damage Taken 3848 | . 317 . . 364 254 38 1288 391 1196 Core 761 | . 44 . . 10 7 4 230 63 403 Absorbed by Shields 220 | . . . . . . 18 202 . . Regen/Repaired (Parts) 17 | . . . . . . . . 7 10 Core Remaining (%) 92 | 100 . . . 78 98 . . . . Volleys Fired 115 | 19 37 . . 4 11 . 26 10 8 Largest 3 | 2 2 . . 1 1 . 3 3 3 Hottest 168 | 60 50 . . 100 100 . 168 163 163 Shots Fired 226 | 38 74 . . 4 11 . 48 31 20 Gun 162 | 38 56 . . . . . 17 31 20 Cannon 64 | . 18 . . 4 11 . 31 . . Launcher . | . . . . . . . . . . Special . | . . . . . . . . . . Kinetic 151 | 26 74 . . . . . 33 11 7 Thermal 41 | . . . . 4 11 . 8 10 8 Explosive . | . . . . . . . . . . Electromagnetic 34 | 12 . . . . . . 7 10 5 Robot Hit Streak 14 | 5 9 . . 2 8 . 9 6 14 Robot Miss Streak 7 | 4 4 . . 2 3 . 3 7 2 Penetration Max 1 | . . . . . . . 1 . 1 Secondary Targets 2 | . . . . . . . . 2 . Max Gunslinging Chain 1 | . . . . . . . . 1 . Shots Hit Robots 122 | 20 40 . . 2 9 . 25 13 13 Core Hits 68 | 8 17 . . 5 10 . 15 8 5 Critical Kills 4 | . . . . . 3 . 1 . . Critical Parts Destroyed . | . . . . . . . . . . Critical Strikes 10 | . 1 . . . 3 . 3 1 2 Burn 1 | . . . . . . . . . 1 Meltdown 4 | . . . . . 3 . 1 . . Blast 3 | . 1 . . . . . 2 . . Corrupt 2 | . . . . . . . . 1 1 Melee Attacks . | . . . . . . . . . . Impact . | . . . . . . . . . . Slashing . | . . . . . . . . . . Piercing . | . . . . . . . . . . Sneak Attacks . | . . . . . . . . . . Combat Hostiles . | . . . . . . . . . . Follow-up Attacks . | . . . . . . . . . . Damage Inflicted 5623 | 226 602 . . 731 1626 . 1764 289 385 Guns 1512 | 218 417 . . . . . 203 289 385 Cannons 2297 | . 184 . . 323 925 . 865 . . Explosions 1782 | . . . . 385 701 . 696 . . Melee . | . . . . . . . . . . Ramming 32 | 8 1 . . 23 . . . . . Kinetic 1414 | 150 601 . . . . . 446 79 138 Thermal 3775 | . . . . 708 1626 . 1179 111 151 Explosive . | . . . . . . . . . . Electromagnetic 402 | 68 . . . . . . 139 99 96 Impact . | . . . . . . . . . . Slashing . | . . . . . . . . . . Piercing . | . . . . . . . . . . Highest Corruption 7 | . . . . . . . 1 1 7 Average Corruption 1 | . . . . . . . 1 1 1 Corruption Purged . | . . . . . . . . . . Corruption Blocked . | . . . . . . . . . . Effects 37 | . . . . . . . 11 15 11 Message Errors 13 | . . . . . . . 5 4 4 Matter Fused 4 | . . . . . . . 1 2 1 Heat Flow Errors 8 | . . . . . . . 2 3 3 Energy Discharges 3 | . . . . . . . 1 2 . Parts Fused 1 | . . . . . . . . . 1 Data Loss (minor) 5 | . . . . . . . 2 1 2 Data Loss (major) 1 | . . . . . . . . 1 . Misfires 1 | . . . . . . . . 1 . Alerts 1 | . . . . . . . . 1 . Overload Shots . | . . . . . . . . . . Overflow Damage 419 | . . . . 113 215 . 91 . . Projectiles 330 | . . . . 80 159 . 91 . . Explosions 89 | . . . . 33 56 . . . . Melee . | . . . . . . . . . . Knockbacks 7 | . 2 . . . . . 5 . . Impact . | . . . . . . . . . . Kinetic 7 | . 2 . . . . . 5 . . Secondary . | . . . . . . . . . . Self-Inflicted Damage 380 | . . . . 208 60 . 112 . . Shots 6 | . . . . 3 1 . 2 . . Rammed . | . . . . . . . . . . Targets Rammed 8 | 2 1 . . 5 . . . . . Kicked 8 | 2 1 . . 5 . . . . . Crushed . | . . . . . . . . . . Highest Temperature 577 | 40 2 . . 80 32 . 201 350 577 Average Temperature 104 | 20 2 . . 41 15 . 66 129 235 Received Heat Transfer 787 | . 69 . . 54 36 . 226 42 360 Effects 8 | . . . . . . . . 1 7 Shutdowns 2 | . . . . . . . . 1 1 Energy Bleed 1 | . . . . . . . . . 1 Damage (major) 5 | . . . . . . . . . 5 Siege Activations . | . . . . . . . . . . Martial Activations . | . . . . . . . . . . Shielding Activations . | . . . . . . . . . . Robots Disrupted . | . . . . . . . . . . Combat Hostiles . | . . . . . . . . . . Robots Corrupted 1 | . . . . . . . . . 1 Combat Hostiles 1 | . . . . . . . . . 1 Parts Fried 2 | . . . . . . . 1 . 1 Impact Corruptions . | . . . . . . . . . . Robots Melted 4 | . . . . . 3 . 1 . . Combat Hostiles 4 | . . . . . 3 . 1 . . Parts Melted 9 | . . . . . 2 . 6 . 1 Heat Transferred 3740 | . . . . 560 1360 . 1120 250 450 Parts Sabotaged . | . . . . . . . . . . Parts Stolen . | . . . . . . . . . . Parts Stripped . | . . . . . . . . . . Power Chain Reactions . | . . . . . . . . . . Alert | -11 -10 -10 -10 -9 -8 -7 -7 -7 -7 ------- Run | Yrd Mat Min Exi Min Mat Fac Low Low Zio Maximum Alert Level 1 | . . . . . 1 . . . . Low Security (%) 92 | 100 100 100 . 100 56 100 . . . Level 1 7 | . . . . . 43 . . . . Level 2 . | . . . . . . . . . . Level 3 . | . . . . . . . . . . Level 4 . | . . . . . . . . . . Level 5 . | . . . . . . . . . . High Security . | . . . . . . . . . . Max Security . | . . . . . . . . . . Peak Influence 260 | 10 95 3 . 72 260 83 . . . Initial 83 | . . 3 . . . 83 . . . Average 40 | 1 29 . . 13 156 13 . . . Influence Increases 1168 | 25 218 . . 124 384 2 285 130 . Destroy 0b10 Robot/C 740 | . 140 . . 60 180 . 240 120 . Destroy 0b10 Robot/NC 85 | 25 30 . . . 30 . . . . Destroy Leader 140 | . 30 . . 10 60 . 30 10 . Successful Hack 19 | . 17 . . . . 2 . . . Disable Machine 60 | . . . . 15 45 . . . . Destroy Structure 109 | . 1 . . 39 69 . . . . Lose Combat Pursuer 15 | . . . . . . . 15 . . Influence Decreases 1168 | 25 209 9 . 124 200 186 224 191 . Entered New Map 120 | . . 6 . . . 101 . 13 . Time Decay 948 | 25 199 3 . 104 200 85 164 168 . Lost Part 100 | . 10 . . 20 . . 60 10 . Squads Dispatched 5 | . 2 . . 1 . 2 . . . Investigation 2 | . 1 . . . . 1 . . . Extermination 1 | . . . . . . 1 . . . Reinforcement 2 | . 1 . . 1 . . . . . Assault . | . . . . . . . . . . Garrison . | . . . . . . . . . . Intercept . | . . . . . . . . . . Searches Triggered . | . . . . . . . . . . Construction Impeded 1 | . . . . 1 . . . . . Haulers Reinforced . | . . . . . . . . . . Active Scanning Responses . | . . . . . . . . . . Cargo Convoy Interrupts . | . . . . . . . . . . Stealth | -11 -10 -10 -10 -9 -8 -7 -7 -7 -7 --------- Run | Yrd Mat Min Exi Min Mat Fac Low Low Zio Distress Signals 3 | . 1 . . . 2 . . . . Communications Jammed . | . . . . . . . . . . Distress Signals . | . . . . . . . . . . Times Spotted 59 | . 17 . . 6 13 2 10 6 5 Peak Tracking Total 8 | . 6 . . 3 7 1 5 3 8 Tactical Retreats 3 | . . . . 1 . . 1 . 1 Traps | -11 -10 -10 -10 -9 -8 -7 -7 -7 -7 ------- Run | Yrd Mat Min Exi Min Mat Fac Low Low Zio Traps Triggered 1 | . . . . . 1 . . . . Indirectly . | . . . . . . . . . . Trap Hack Attempts . | . . . . . . . . . . Triggered . | . . . . . . . . . . Disarmed . | . . . . . . . . . . Reprogrammed . | . . . . . . . . . . Reused . | . . . . . . . . . . Traps Extracted . | . . . . . . . . . . Installed . | . . . . . . . . . . Triggered . | . . . . . . . . . . Machines | -11 -10 -10 -10 -9 -8 -7 -7 -7 -7 ---------- Run | Yrd Mat Min Exi Min Mat Fac Low Low Zio Machines Disabled 6 | . . . . 1 3 . 1 . 1 Max in Single Turn 1 | . . . . 1 1 . 1 . 1 Machines Repaired . | . . . . . . . . . . Machines Dismantled . | . . . . . . . . . . Machines Sabotaged . | . . . . . . . . . . Overloaded Fab Kills . | . . . . . . . . . . Hacking | -11 -10 -10 -10 -9 -8 -7 -7 -7 -7 --------- Run | Yrd Mat Min Exi Min Mat Fac Low Low Zio Machines Accessed 6 | . 4 . . . . 1 1 . . Terminals 4 | . 3 . . . . 1 . . . Fabricators . | . . . . . . . . . . Repair Stations . | . . . . . . . . . . Recycling Units 1 | . 1 . . . . . . . . Scanalyzers . | . . . . . . . . . . Garrison Access . | . . . . . . . . . . Total Hacks 17 | . 13 . . . . 3 1 . . Successful 9 | . 7 . . . . 1 1 . . Failed 8 | . 6 . . . . 2 . . . Catastrophic 1 | . . . . . . 1 . . . Database Lockouts . | . . . . . . . . . . Manual 2 | . . . 1 . . . . . 1 Terminals 13 | . 10 . . . . 3 . . . Fabricators . | . . . . . . . . . . Repair Stations . | . . . . . . . . . . Recycling Units 3 | . 3 . . . . . . . . Scanalyzers . | . . . . . . . . . . Garrison Access . | . . . . . . . . . . Terminal Hacks 6 | . 4 . . . . 1 1 . . Record 1 | . . . . . . 1 . . . Prototype ID Bank 1 | . 1 . . . . . . . . Open Door 1 | . . . . . . . 1 . . Locate Traps 1 | . 1 . . . . . . . . Registered Components 1 | . 1 . . . . . . . . Zone Layout 1 | . 1 . . . . . . . . Fabricator Hacks . | . . . . . . . . . . Repair Station Hacks . | . . . . . . . . . . Recycling Unit Hacks 3 | . 3 . . . . . . . . Report Inventory 1 | . 1 . . . . . . . . Retrieve Matter 1 | . 1 . . . . . . . . Retrieve Components 1 | . 1 . . . . . . . . Scanalyzer . | . . . . . . . . . . Garrison Access Hacks . | . . . . . . . . . . Unauthorized Hacks . | . . . . . . . . . . Terminals . | . . . . . . . . . . Fabricators . | . . . . . . . . . . Repair Stations . | . . . . . . . . . . Recycling Units . | . . . . . . . . . . Scanalyzers . | . . . . . . . . . . Garrison Access . | . . . . . . . . . . Data Cores Recovered . | . . . . . . . . . . Used . | . . . . . . . . . . Hacking Detections 4 | . 3 . . . . 1 . . . Full Trace Events 3 | . 2 . . . . 1 . . . Feedback Events . | . . . . . . . . . . Feedback Blocked . | . . . . . . . . . . Robot Schematics Acquired . | . . . . . . . . . . Robots Built . | . . . . . . . . . . Authchips . | . . . . . . . . . . Time . | . . . . . . . . . . Total Robot Build Rating . | . . . . . . . . . . Part Schematics Acquired . | . . . . . . . . . . Parts Built . | . . . . . . . . . . Authchips . | . . . . . . . . . . Time . | . . . . . . . . . . Total Part Build Rating . | . . . . . . . . . . Part Studies Acquired . | . . . . . . . . . . Parts Repaired . | . . . . . . . . . . Time . | . . . . . . . . . . Parts Recycled . | . . . . . . . . . . Recycled Matter . | . . . . . . . . . . Retrieved Matter . | . . . . . . . . . . Retrieved Components 10 | . 10 . . . . . . . . Parts Scanalyzed . | . . . . . . . . . . Part Schematics Acquired . | . . . . . . . . . . Parts Damaged . | . . . . . . . . . . Bothacking | -11 -10 -10 -10 -9 -8 -7 -7 -7 -7 ------------ Run | Yrd Mat Min Exi Min Mat Fac Low Low Zio Used RIF Installer . | . . . . . . . . . . Robots Hacked . | . . . . . . . . . . Non-combat . | . . . . . . . . . . Combat . | . . . . . . . . . . Robot Hacks Applied . | . . . . . . . . . . Relay Couplers Released . | . . . . . . . . . . Fabnet Peak Effective % . | . . . . . . . . . . Robots Rewired . | . . . . . . . . . . Allies Hacked . | . . . . . . . . . . Hacks Repelled . | . . . . . . . . . . Allies | -11 -10 -10 -10 -9 -8 -7 -7 -7 -7 -------- Run | Yrd Mat Min Exi Min Mat Fac Low Low Zio Total Allies . | . . . . . . . . . . Largest Group . | . . . . . . . . . . Highest-Rated Group . | . . . . . . . . . . Highest-Rated Ally . | . . . . . . . . . . Total Orders . | . . . . . . . . . . Ally Attacks . | . . . . . . . . . . Total Damage . | . . . . . . . . . . Kills . | . . . . . . . . . . Allies Corrupted . | . . . . . . . . . . Allies Melted . | . . . . . . . . . . Intel | -11 -10 -10 -10 -9 -8 -7 -7 -7 -7 ------- Run | Yrd Mat Min Exi Min Mat Fac Low Low Zio Active Infowar (turns) 8783 | 84 569 345 736 512 480 574 2219 2019 1245 Seismic 8783 | 84 569 345 736 512 480 574 2219 2019 1245 Robot Analysis Total . | . . . . . . . . . . Derelict Logs Recovered 10 | . . 2 . 2 . . 2 3 1 Drone Launches . | . . . . . . . . . . Drone Recoveries . | . . . . . . . . . . Exploration | -11 -10 -10 -10 -9 -8 -7 -7 -7 -7 ------------- Run | Yrd Mat Min Exi Min Mat Fac Low Low Zio Turns Passed 8930 | 172 569 345 736 512 480 574 2219 2019 1304 Spaces Moved 3856 | 84 367 286 536 252 229 232 900 590 380 Core 12 | 8 . . . . . . . . 4 Treads 1116 | . . . . . 118 232 766 . . Legs 2728 | 76 367 286 536 252 111 . 134 590 376 Wheels . | . . . . . . . . . . Hover . | . . . . . . . . . . Flight . | . . . . . . . . . . Fastest Speed 50 | 50 120 120 120 190 158 158 190 190 330 Average Speed 215 | 115 120 120 136 190 178 230 232 325 330 Slowest Speed 400 | 190 120 120 190 190 232 245 330 330 400 Overloaded Moves . | . . . . . . . . . . Propulsion Burnouts . | . . . . . . . . . . Robots Hopped . | . . . . . . . . . . Potential Cave-ins 2 | . . . . . 2 . . . . Cave-ins Triggered . | . . . . . . . . . . Exploration Rate (%) 51 | 6 47 62 85 58 23 7 94 80 56 Regions Visited 9 Branch Regions 6 Pre-discovered Areas 4 | . . 1 . 1 . . . 1 1 Known Exits Taken 1 | . . . . . 1 . . . . Unknown Exits Taken 8 | 1 1 1 1 1 . 1 1 1 . Scrap Searched 12 | . . 1 . 2 . . 5 3 1 Spaces Dug . | . . . . . . . . . . Terrain Destroyed 234 | . . . . 51 76 . 105 2 . Melee . | . . . . . . . . . . Projectile 18 | . . . . 1 2 . 13 2 . AOE 216 | . . . . 50 74 . 92 . . Terrain Rammed . | . . . . . . . . . . Walls Destroyed . | . . . . . . . . . . Machines Disabled . | . . . . . . . . . . Actions | -11 -10 -10 -10 -9 -8 -7 -7 -7 -7 --------- Run | Yrd Mat Min Exi Min Mat Fac Low Low Zio Total 4234 | 121 422 288 543 269 266 275 973 666 411 Wait 144 | 2 5 . . 5 4 23 20 64 21 Move 3847 | 83 366 285 535 251 228 231 899 589 380 Hop . | . . . . . . . . . . Pick Up 41 | 4 8 1 2 1 7 5 10 1 2 Fast Attach 15 | 6 . . 1 . 3 3 2 . . Attach 18 | 2 1 . . 2 2 3 8 . . Detach 6 | 1 . . . . 2 2 1 . . Swap 14 | 2 2 1 . 1 6 2 . . . Drop 24 | . 2 1 4 . 3 6 7 1 . Fire 115 | 19 37 . . 4 11 . 26 10 8 Melee . | . . . . . . . . . . Ram . | . . . . . . . . . . Kick 8 | 2 1 . . 5 . . . . . Crush . | . . . . . . . . . . Escape Stasis . | . . . . . . . . . . Rewire 1 | . . . 1 . . . . . . Trap . | . . . . . . . . . . Miscellaneous 1 | . . . . . . . . 1 . Route ------- -11/Scrapyard -10/Materials (discovered 3 exits: [*Mat] / [*Min x2]) -10/Mines (discovered 2 exits: [*Mat] / *Exi) -10/Exiles -9/Mines -8/Materials (discovered 2 exits: *Fac x2) -7/Factory (discovered 2 exits: Sto / *Low) -7/Lower Caves -7/Lower Caves -7/Zion (discovered 1 exit: Pro) History --------- Turn | Location | Event 7 | -11/Scrapyard | Discovered new exit (range 15) 173 | -11/Scrapyard | Entered Materials 308 | -10/Materials | Build established: Mutant 413 | -10/Materials | Discovered new exit (range 15) 521 | -10/Materials | Discovered new exit (range 14) 635 | -10/Materials | Discovered new exit (range 14) 742 | -10/Materials | Entered Mines 763 | -10/Mines | Met a Derelict bent on vengeance 836 | -10/Mines | Found a hidden stash of uninstalled traps 898 | -10/Mines | A weapon hastily lodged in a ceiling crevice suddenly fell to the ground 1021 | -10/Mines | Learned location of Zion (-7) 1029 | -10/Mines | Discovered new exit (range 10) 1041 | -10/Mines | Deemed a non-threat by the Exiles lab entrance 1042 | -10/Mines | Discovered new exit (range 5) 1087 | -10/Mines | Entered Exiles 1103 | -10/Exiles | Discovered new exit (range 15) 1120 | -10/Exiles | Met 8R-AWN 1138 | -10/Exiles | Met EX-HEX 1209 | -10/Exiles | Met EX-DEC 1241 | -10/Exiles | Visited The Gauntlet 1511 | -10/Exiles | Met EX-BIN 1526 | -10/Exiles | Aligned with FarCom system 1527 | -10/Exiles | Given EX-Vault access code 1559 | -10/Exiles | Opened EX-Vault 1583 | -10/Exiles | Found Prototype Energy Cannon 1583 | -10/Exiles | Identified YOLO Cannon 1671 | -10/Exiles | Warned to stay clear of 0b10 Research branches 1823 | -10/Exiles | Left Exiles lab with YOLO Cannon 1823 | -10/Exiles | Entered Mines 1948 | -9/Mines | Assembled infested the area 2149 | -9/Mines | Build established: Scavenger-Mutant 2188 | -9/Mines | Discovered new exit (range 8) 2279 | -9/Mines | Found a Scrap Suit stashed away for nefarious purposes 2283 | -9/Mines | Found Scrap Suit 2335 | -9/Mines | Entered Materials 2335 | -8/Materials | Evolved 4 slots: Propulsion x2, Utility x2 2336 | -8/Materials | Identified exit to Factory 2748 | -8/Materials | Discovered exit to Factory (range 3) 2815 | -8/Materials | Entered Factory 2815 | -7/Factory | Evolved 2 slots: Weapon x2 2816 | -7/Factory | Identified exit to Storage 3146 | -7/Factory | Build established: Skirmisher 3334 | -7/Factory | Discovered new exit (range 4) 3389 | -7/Factory | Entered Lower Caves 3558 | -7/Lower Caves | Learned Factory emergency access door positions 3611 | -7/Lower Caves | Build established: Scavenger-Tank 4171 | -7/Lower Caves | Learned location of 1 exit from Factory 4443 | -7/Lower Caves | Spotted B-75 Beast 4445 | -7/Lower Caves | Destroyed B-75 Beast 5041 | -7/Lower Caves | Discovered new exit (range 5) 5242 | -7/Lower Caves | Attracted the attention of an 0b10 outpost 5356 | -7/Lower Caves | Lost 6 parts (2n1u3w) 5598 | -7/Lower Caves | Build established: Gunner 5608 | -7/Lower Caves | Entered another Lower Caves area 5697 | -7/Lower Caves | Learned 4 Factory zone layouts 6735 | -7/Lower Caves | Attracted the attention of an 0b10 checkpoint 7264 | -7/Lower Caves | Discovered new exit (range 11) 7295 | -7/Lower Caves | Learned Factory stockpile data 7460 | -7/Lower Caves | Found DRS Beacon 7468 | -7/Lower Caves | Activated DRS Beacon 7627 | -7/Lower Caves | Entered Zion 7677 | -7/Zion | Found CR-A16's Pointy Stick 7850 | -7/Zion | Identified exit to Proximity Caves 7998 | -7/Zion | Learned location of Data Miner (-6) 8385 | -7/Zion | Learned Factory emergency access door positions 8801 | -7/Zion | Rebuked by Imprinter 8857 | -7/Zion | Attempted to imprint without authorization 8857 | -7/Zion | Attacked by Zionites 8905 | -7/Zion | Core integrity fell below 50% 8922 | -7/Zion | Core integrity fell below 20% 8931 | -7/Zion | Destroyed by JO-E9O(M) with Riot Gun Last Messages --------------- Hpw. Shock Rifle destroyed. System corrupted: Heat flow error (+243). Overheating: Scrap Suit damaged (-134). Overheating: Arm. Treads damaged (-5). Overheating: Plasma Rifle damaged (-29). Arm. Treads destroyed. Deuterium Engine destroyed. Slug penetrates 09-389(c). Gauss Rifle destroyed. 09-389(c) destroyed. Plasma Rifle destroyed. Overheating: Carbon-fiber Leg damaged (-11). Overheating: Mak. Hammer damaged (-73). Scrap Suit destroyed. Carbon-fiber Leg destroyed. A strange signal echoes through Zion. System corrupted: Heat flow error (+113). Critical hit (Burn: +80). Mak. Hammer destroyed. Critical hit (Burn: +80). Map ----- +----------------------------------------------------+ | ???????????????"#?##"###""" "" """ | | ???????????????""##"""#"""" "" | | ????############""""""""""" " | | ????"""""""""" #""" """"""" | | ???#"""""""""" #""" ! | | ???#"" #""" % | | ????"""""" ##"" """"""""" | | ????""""""" """""""#""" | | ?????"""""" """#""###"""" | | ?????"""""" "######?""""" | | ?????""""" ###" "##?????#" | | ?????" ###" ""#?????"" | | ????"""""""""" ##"" ""#??????? " | | ?????""""""""" #"#" ""#???????? ??" | | ?????###########""" "##???????????? | | ???????????#####""# ""#???????????? | | ??????????##"""#### ###???????????? | | ??????????#" #?????????????? | | ??????????#" #?????????????? | | ??????????#" = #?????????????? | | ??????????## % #### #?????????????? | | ???????????#M #??######?????????????? | | ???????##### M#####?????????????????? | | ???????"""" M """""?????????????????? | | ?????###### %"######???????????????? | | ?????# " " @! " #???????????????? | | ?????# " """ #???????????????? | | ?????#"""" " " #???????????????? | | ?????#""""" """""#???????????????? | | ?????#""""" """" #???????????????? | | ?????#" "" " ""#???????????????? | | ?????#"" """" "" " #???????????????? | | ?????#""""""" """""" #???????????????? | | ?????#"""" """"""""""#???????????????? | | ?????# " """"" #???????????????? | | ?????? """""""""""" ????????????????? | | ??????""""""""" """""????????????????? | | ????????? """"" ""???????????????????? | | ????????????""" "????????????????????? | | ??????????????? ????????????????????? | | ?????????????????????????????????????? | | ?????????????????????????????????????? | | ?????????????????????????????????????? | | ?????????????????????????????????????? | | ?????????????????????????????????????? | | ?????????????????????????????????????? | | ?????????????????????????????????????? | | ?????????????????????????????????????? | | ?????????????????????????????????????? | | ?????????????????????????????????????? | +----------------------------------------------------+ Best States ------------- Heat Dissipation 34 Energy Generation 18 Energy Capacity 310 Matter Stores 300 Matter Capacity 300 Sight Range 16 Terrain Scan Density 10 Armor Coverage 225 Evasion (%) 55 Targeting Accuracy 5 Recoil Reduction 3 Item Schematics ----------------- None Robot Schematics ------------------ None Fabricated ------------ Nothing Repaired ---------- Nothing Studied --------- None Alien Tech Used ----------------- None Achievements -------------- Deductive Reasoning I Survived The Infestation Remodeling Challenges ------------ None Game ------ Seed EfficiencyMomentumWheel Manual? 0 Play Time 01:14:31 Cumulative 5.8 hours Start 2025.12.30 @ 12:12:00 End 2025.12.30 @ 13:31:44 Sessions 2 Manual Loads 0 Difficulty Rogue Special Mode None Game No. 9 Rogue 9 Adventurer 0 Explorer 0 Win Type - Total 0 Types 0/0/0/0/0/0/0/0/0/0 Lore% 9 Gallery% 11 Achievement% 11 Wizard Run 0 Options --------- Layout 1 ASCII 0 Keyboard 0 Movement Numpad Keybinds 0 Fullscreen 1 Font 24/Smallcaps Map View 50x35 Zoom Use 0% Tactical HUD 0 Map Filters NONE Filters NONE Steam 1 RUN: cfdbd16a-b923-49b8-a995-310b5fc5fe22